bitfinex-derivatives/quotes_BNBF0:USTF0_20251220
["timestamp","ask_amount","ask_price","bid_price","bid_amount"]
[1766208862158,1.15297638,856.38,855.19,7.47719897]
[1766208864363,1.15297638,856.39,855.19,7.47719897]
[1766208866361,1.15297638,856.4,855.19,7.47719897]
[1766208868156,1.15297638,856.41,855.19,7.47719897]
[1766208876272,1.15297638,856.42,855.19,7.47719897]
[1766208882175,1.15297638,856.41,855.19,7.47719897]
[1766208885277,1.15297638,856.4,855.19,7.47719897]
[1766208888374,1.15297638,856.39,855.19,7.47719897]
[1766208889274,1.15297638,856.38,855.19,7.47719897]
[1766208891278,1.15297638,856.37,855.19,7.47719897]
[1766208892276,1.15297638,856.36,855.19,7.47719897]
[1766208895879,1.15297638,856.31,855.19,7.47719897]
[1766208898283,1.15297638,856.32,855.19,7.47719897]
[1766208900379,1.15297638,856.31,855.19,7.47719897]
[1766208900583,1.15297638,856.29,855.19,7.47719897]
[1766208901483,5.08932266,856.48,855.19,7.47719897]
[1766208901484,1.15297638,856.26,855.19,7.47719897]
[1766208903383,1.72946457,856.42,855.19,7.47719897]
[1766208903384,1.15297638,856.27,855.19,7.47719897]
[1766208910184,1.15297638,856.26,855.19,7.47719897]
[1766208910389,1.15297638,856.27,855.19,7.47719897]
[1766208911184,1.15297638,856.26,855.19,7.47719897]
[1766208914186,1.15297638,856.25,855.19,7.47719897]
[1766208914986,1.15297638,856.25,855.04,1.16502299]
[1766208915191,1.15297638,856.25,855.05,1.16502299]
[1766208916091,1.15297638,856.28,855.09,1.16502299]
[1766208916292,1.15297638,856.29,855.1,1.16502299]
[1766208917087,1.15297638,856.29,855.11,1.16502299]
[1766208917894,1.15297638,856.31,855.14,1.16502299]
[1766208919296,1.15297638,856.31,855.15,1.16502299]
[1766208920292,1.15297638,856.3,855.15,1.16502299]
[1766208920893,1.15297638,856.31,855.15,1.16502299]
[1766208921095,1.15297638,856.34,855.18,1.16502299]
[1766208931301,1.15297638,856.29,855.14,1.16502299]
[1766208931502,1.15297638,856.23,855.08,1.16502299]
[1766208934204,1.15297638,856.24,855.08,1.16502299]
[1766208934500,1.15297638,856.32,855.17,1.16502299]
[1766208934804,1.15297638,856.33,855.17,1.16502299]
[1766208935304,1.15297638,856.32,855.17,1.16502299]
[1766208953319,1.15297638,856.29,855.15,1.16502299]
[1766208954423,1.15297638,856.27,855.13,1.16502299]
[1766208958530,1.15297638,856.23,855.09,1.16502299]
[1766208958723,1.15297638,856.23,855.04,7.36644624]
[1766208958724,1.15297638,856.17,855.04,7.36644624]
[1766208961932,1.15297638,856.18,855.04,7.36644624]
[1766208965331,1.15297638,856.19,855.04,7.36644624]
[1766208971132,1.15297638,856.2,855.04,7.36644624]
[1766208977145,1.15297638,856.21,855.04,7.36644624]
[1766208998457,1.15297638,856.2,855.04,7.36644624]
[1766209003365,1.15297638,856.19,855.04,7.36644624]
[1766209006464,1.15297638,856.18,855.04,7.36644624]
[1766209009369,1.15297638,856.17,855.04,7.36644624]
[1766209011269,53.82680751,856.52,855.04,8.53146923]
[1766209011270,1.15297638,856.16,855.04,8.53146923]
[1766209012367,1.15297638,856.15,855.05,1.16502299]
[1766209014372,1.15297638,856.14,855.06,1.16502299]
[1766209016370,1.15297638,856.13,855.07,1.16502299]
[1766209017275,1.15297638,856.1,855.07,1.16502299]
[1766209017574,1.15297638,856.1,855.04,8.53146923]
[1766209018371,1.15297638,856.08,855.06,1.16502299]
[1766209019274,1.15297638,856.09,855.06,1.16502299]
[1766209020373,0.20333457,856.16,855.04,7.36644624]
[1766209020374,1.15297638,856.11,855.09,1.16502299]
[1766209022477,1.15297638,856.13,855.11,1.16502299]
[1766209022676,5.60697575,856.18,855.15,1.16502299]
[1766209023373,4.45399937,856.18,855.21,1.16502299]
[1766209024179,4.45399937,856.18,855.2,1.16502299]
[1766209024378,4.45399937,856.18,855.19,1.16502299]
[1766209025284,4.45399937,856.18,855.18,1.16502299]
[1766209025782,4.45399937,856.18,855.27,1.16502299]
[1766209025986,4.45399937,856.18,855.29,1.16502299]
[1766209026388,4.45399937,856.18,855.27,1.16502299]
[1766209027388,4.45399937,856.18,855.26,1.16502299]
[1766209028188,4.45399937,856.18,855.24,1.16502299]
[1766209029289,4.45399937,856.18,855.23,1.16502299]
[1766209031288,4.45399937,856.18,855.22,1.16502299]
[1766209032493,4.45399937,856.18,855.21,1.16502299]
[1766209033589,4.45399937,856.18,855.26,1.16502299]
[1766209034194,4.45399937,856.18,855.25,1.16502299]
[1766209036195,4.45399937,856.18,855.24,1.16502299]
[1766209037292,4.45399937,856.18,855.23,1.16502299]
[1766209039197,4.45399937,856.18,855.22,1.16502299]
[1766209040297,4.45399937,856.18,855.21,1.16502299]
[1766209043294,4.45399937,856.18,855.2,1.16502299]
[1766209046097,4.45399937,856.18,855.19,1.16502299]
[1766209046295,4.45399937,856.18,855.11,1.16502299]
[1766209049203,4.45399937,856.18,855.1,1.16502299]
[1766209049404,4.45399937,856.18,855.11,1.16502299]
[1766209057309,4.45399937,856.18,855.12,1.16502299]
[1766209057709,46.50987651,856.64,855.29,1.16502299]
[1766209057909,0.20328528,856.55,855.29,1.16502299]
[1766209058307,0.20328528,856.55,855.25,6.36861069]
[1766209059405,1.15297638,856.53,855.25,6.36861069]
[1766209060411,1.15297638,856.49,855.25,6.36861069]
[1766209062309,1.15297638,856.48,855.25,6.36861069]
[1766209064714,1.15297638,856.47,855.25,6.36861069]
[1766209064909,1.15297638,856.42,855.25,6.36861069]
[1766209065209,1.15297638,856.41,855.25,6.36861069]
[1766209068310,1.15297638,856.4,855.25,6.36861069]
[1766209071115,1.15297638,856.39,855.25,6.36861069]
[1766209073117,1.15297638,856.38,855.25,6.36861069]
[1766209075221,1.15297638,856.37,855.25,6.36861069]
[1766209077219,1.15297638,856.36,855.25,6.36861069]
[1766209078425,1.15297638,856.35,855.25,6.36861069]
[1766209078726,1.15297638,856.27,855.25,6.36861069]
[1766209079122,1.15297638,856.26,855.25,6.36861069]
[1766209079321,1.15297638,856.27,855.25,6.36861069]
[1766209081523,1.15297638,856.26,855.25,6.36861069]
[1766209086437,1.72946457,856.42,855.25,6.36861069]
[1766209086438,1.15297638,856.27,855.25,6.36861069]
[1766209090245,1.15297638,856.28,855.25,6.36861069]
[1766209092050,1.15297638,856.24,855.25,6.36861069]
[1766209093245,1.15297638,856.25,855.25,6.36861069]
[1766209100655,0.20331913,856.14,855.25,6.36861069]
[1766209100850,4.64070651,856.14,855.25,6.36861069]
[1766209138285,5.79368289,856.14,855.25,6.36861069]
[1766209149295,1.15297638,856.13,855.25,6.36861069]
[1766209157202,4.64070651,856.14,855.25,6.36861069]
[1766209166307,4.64070651,856.14,855.29,1.16502299]
[1766209167412,4.64070651,856.14,855.28,1.16502299]
[1766209168311,4.64070651,856.14,855.27,1.16502299]
[1766209169510,4.64070651,856.14,855.26,1.16502299]
[1766209170310,4.64070651,856.14,855.25,7.53363368]
[1766209171310,4.64070651,856.14,855.25,6.36861069]
[1766209179916,4.64070651,856.14,855.19,1.16502299]
[1766209184312,4.64070651,856.14,855.18,1.16502299]
[1766209188918,4.64070651,856.14,855.15,1.16502299]
[1766209193221,4.64070651,856.14,855.16,1.16502299]
[1766209193423,4.64070651,856.14,855.15,1.16502299]
[1766209195320,4.64070651,856.14,855.16,1.16502299]
[1766209196021,4.64070651,856.14,855.16,7.77252299]
[1766209197923,4.64070651,856.14,855.16,6.6075]
[1766209204533,1.15297638,856.13,854.96,0.20331913]
[1766209205032,1.15297638,856.07,854.96,0.20331913]
[1766209205231,1.15297638,856.08,854.76,1.16502299]
[1766209205429,1.15297638,856.03,854.86,0.20338329]
[1766209205630,1.15297638,856.02,854.86,0.20338329]
[1766209206227,1.15297638,856.04,854.86,0.20338329]
[1766209207229,1.15297638,856.05,854.86,0.20338329]
[1766209208228,1.15297638,856.06,854.86,0.20338329]
[1766209209535,1.15297638,856.08,854.86,0.20338329]
[1766209210233,1.15297638,856.09,854.86,0.20338329]
[1766209211434,1.15297638,856.1,854.86,0.20338329]
[1766209212234,1.15297638,856.11,854.86,0.20338329]
[1766209213334,1.15297638,856.12,854.86,0.20338329]
[1766209215234,1.15297638,856.13,854.86,0.20338329]
[1766209216236,5.79368289,856.14,854.86,0.20338329]
[1766209217443,4.64070651,856.14,854.86,0.20338329]
[1766209222446,1.15297638,856.18,854.86,0.20338329]
[1766209224249,1.15297638,856.19,854.86,0.20338329]
[1766209226248,1.15297638,856.2,854.86,0.20338329]
[1766209237150,1.15297638,856.19,854.86,0.20338329]
[1766209237355,5.95950977,856.19,854.86,0.20338329]
[1766209240253,1.15297638,856.18,854.86,0.20338329]
[1766209242460,1.15297638,856.17,854.86,0.20338329]
[1766209244262,1.15297638,856.16,854.86,0.20338329]
[1766209245260,4.80653339,856.19,854.86,0.20338329]
[1766209249265,5.95950977,856.19,854.86,0.20338329]
[1766209250261,1.15297638,856.18,854.86,0.20338329]
[1766209251267,1.15297638,856.17,854.86,0.20338329]
[1766209252367,1.15297638,856.16,854.86,0.20338329]
[1766209253369,1.15297638,856.15,854.86,0.20338329]
[1766209254266,1.15297638,856.14,854.86,0.20338329]
[1766209255367,1.15297638,856.12,854.86,0.20338329]
[1766209256268,1.15297638,856.11,854.86,0.20338329]
[1766209257374,1.15297638,856.09,854.86,0.20338329]
[1766209258371,1.15297638,856.07,854.86,0.20338329]
[1766209259274,1.15297638,856.05,854.86,0.20338329]
[1766209261078,1.15297638,856.03,854.86,0.20338329]
[1766209262281,1.15297638,856.0,854.87,1.16502299]
[1766209263275,1.15297638,855.99,854.88,1.16502299]
[1766209289295,1.15297638,855.98,854.88,1.16502299]
[1766209291600,1.15297638,855.95,854.86,0.20338329]
[1766209295402,1.72946457,856.1,854.86,0.20338329]
[1766209295403,1.15297638,855.94,854.86,0.20338329]
[1766209297303,1.15297638,855.94,854.86,1.36840628]
[1766209299601,1.15297638,855.9,854.86,0.20338329]
[1766209307012,1.15297638,856.02,854.93,1.16502299]
[1766209307308,52.18961906,856.11,855.03,1.16502299]
[1766209307509,52.18961906,856.11,855.02,1.16502299]
[1766209308312,52.18961906,856.11,855.01,1.16502299]
[1766209309313,1.15297638,856.08,854.95,1.16502299]
[1766209312209,1.15297638,856.09,854.95,1.16502299]
[1766209313513,1.15297638,856.09,854.94,1.16502299]
[1766209317218,1.15297638,856.1,854.94,1.16502299]
[1766209319419,1.15297638,856.1,854.93,1.16502299]
[1766209323322,52.18961906,856.11,854.97,1.16502299]
[1766209325319,52.18961906,856.11,854.96,1.16502299]
[1766209325520,52.18961906,856.11,855.02,1.16502299]
[1766209327223,52.18961906,856.11,855.01,1.16502299]
[1766209327924,52.18961906,856.11,855.09,1.16502299]
[1766209328124,52.18961906,856.11,855.08,1.16502299]
[1766209329221,52.18961906,856.11,854.92,1.74728936]
[1766209329222,52.18961906,856.11,855.07,1.16502299]
[1766209330225,52.18961906,856.11,855.06,1.16502299]
[1766209331521,52.18961906,856.11,855.05,1.16502299]
[1766209333229,52.18961906,856.11,855.04,1.16502299]
[1766209334228,52.18961906,856.11,855.08,1.16502299]
[1766209335327,52.18961906,856.11,855.14,1.16502299]
[1766209336328,52.18961906,856.11,855.13,1.16502299]
[1766209337130,52.18961906,856.11,855.12,1.16502299]
[1766209338229,52.18961906,856.11,855.11,1.16502299]
[1766209339534,52.18961906,856.11,855.1,1.16502299]
[1766209341136,52.18961906,856.11,855.09,1.16502299]
[1766209342239,52.18961906,856.11,855.08,1.16502299]
[1766209344241,52.18961906,856.11,855.07,1.16502299]
[1766209347145,52.18961906,856.11,855.06,1.16502299]
[1766209350347,52.18961906,856.11,855.05,1.16502299]
[1766209354653,52.18961906,856.11,854.86,0.20338329]
[1766209354654,52.18961906,856.11,855.08,1.16502299]
[1766209360358,52.18961906,856.11,855.09,1.16502299]
[1766209362361,52.18961906,856.11,855.1,1.16502299]
[1766209363361,52.18961906,856.11,855.11,1.16502299]
[1766209365460,52.18961906,856.11,855.12,1.16502299]
[1766209366560,52.18961906,856.11,854.97,1.74728936]
[1766209366561,52.18961906,856.11,855.13,1.16502299]
[1766209370365,52.18961906,856.11,855.14,1.16502299]
[1766209373561,52.18961906,856.11,855.15,1.16502299]
[1766209375368,52.18961906,856.11,855.16,1.16502299]
[1766209377369,52.18961906,856.11,855.17,1.16502299]
[1766209378369,52.18961906,856.11,855.18,1.16502299]
[1766209381171,52.18961906,856.11,855.19,1.16502299]
[1766209382167,52.18961906,856.11,855.2,1.16502299]
[1766209383172,52.18961906,856.11,855.21,1.16502299]
[1766209384169,52.18961906,856.11,855.22,1.16502299]
[1766209385072,52.18961906,856.11,855.18,1.16502299]
[1766209385369,52.18961906,856.11,855.19,1.16502299]
[1766209387173,52.18961906,856.11,855.2,1.16502299]
[1766209388172,52.18961906,856.11,855.21,1.16502299]
[1766209390373,52.18961906,856.11,855.22,1.16502299]
[1766209392178,52.18961906,856.11,855.23,1.16502299]
[1766209394280,52.18961906,856.11,855.24,1.16502299]
[1766209409392,52.18961906,856.11,855.23,1.16502299]
[1766209414900,1.15297638,856.32,855.23,1.16502299]
[1766209422406,1.15297638,856.27,855.22,7.11573643]
[1766209424299,0.20328884,856.37,855.22,7.11573643]
[1766209424300,1.15297638,856.28,855.22,7.11573643]
[1766209430208,1.15297638,856.29,855.22,7.11573643]
[1766209435108,1.15297638,856.28,855.22,7.11573643]
[1766209445713,1.15297638,856.27,855.22,7.11573643]
[1766209448619,1.15297638,856.3,855.22,7.11573643]
[1766209449315,1.15297638,856.3,855.22,8.28075942]
[1766209457722,1.15297638,856.31,855.22,8.28075942]
[1766209457923,51.3552499,856.44,855.45,1.16502299]
[1766209458222,4.8628775,856.57,855.57,1.16502299]
[1766209458427,4.8628775,856.57,855.58,1.16502299]
[1766209459028,4.8628775,856.57,855.68,1.16502299]
[1766209459526,4.8628775,856.57,855.64,1.16502299]
[1766209460428,4.8628775,856.57,855.61,1.16502299]
[1766209461324,4.8628775,856.57,855.45,1.74728936]
[1766209461325,4.8628775,856.57,855.58,1.16502299]
[1766209462430,4.8628775,856.57,855.48,1.16502299]
[1766209463325,4.8628775,856.57,855.45,1.16502299]
[1766209463526,4.8628775,856.57,855.44,1.16502299]
[1766209464332,4.8628775,856.57,855.43,1.16502299]
[1766209465326,4.8628775,856.57,855.42,1.16502299]
[1766209466431,4.8628775,856.57,855.41,1.16502299]
[1766209467332,4.8628775,856.57,855.4,1.16502299]
[1766209468334,4.8628775,856.57,855.39,1.16502299]
[1766209468632,4.8628775,856.57,855.3,1.16502299]
[1766209469029,4.8628775,856.57,855.22,8.28075942]
[1766209469233,4.8628775,856.57,855.22,7.11573643]
[1766209475735,4.8628775,856.57,855.41,0.86813199]
[1766209477332,4.8628775,856.57,855.4,0.86813199]
[1766209482540,1.15297638,856.82,855.4,0.86813199]
[1766209483341,1.15297638,856.82,855.41,0.86813199]
[1766209489342,1.15297638,856.81,855.42,0.86813199]
[1766209489748,5.72814419,856.81,855.42,0.86813199]
[1766209492449,1.15297638,856.8,855.42,0.86813199]
[1766209493551,1.15297638,856.8,855.42,0.86871635]
[1766209494554,1.15297638,856.8,855.43,0.86871635]
[1766209495655,1.15297638,856.79,855.43,0.86871635]
[1766209497456,1.15297638,856.79,855.44,0.86871635]
[1766209498354,1.15297638,856.78,855.44,0.86871635]
[1766209501361,1.15297638,856.78,855.45,0.86871635]
[1766209501562,1.15297638,856.77,855.45,0.86871635]
[1766209501862,1.15297638,856.77,855.44,0.86871635]
[1766209502361,1.15297638,856.77,855.45,0.86871635]
[1766209503364,1.15297638,856.76,855.45,0.86871635]
[1766209504064,1.15297638,856.76,855.3,1.16502299]
[1766209504065,1.15297638,856.67,855.37,0.86871635]
[1766209504260,1.15297638,856.63,855.33,0.86871635]
[1766209504559,1.15297638,856.62,855.33,0.86871635]
[1766209505863,4.57516781,856.81,855.31,0.86871635]
[1766209505864,1.15297638,856.6,855.31,0.86871635]
[1766209506261,1.15297638,856.43,855.22,7.11573643]
[1766209506562,1.15297638,856.4,855.11,0.86871635]
[1766209506960,1.15297638,856.4,855.1,0.86871635]
[1766209508262,1.15297638,856.41,855.09,0.86871635]
[1766209508467,1.15297638,856.41,855.1,0.86871635]
[1766209509369,1.15297638,856.41,854.94,1.16502299]
[1766209509370,1.15297638,856.41,855.09,0.86871635]
[1766209510465,1.15297638,856.42,855.09,0.86871635]
[1766209511365,1.15297638,856.42,855.08,0.86871635]
[1766209512166,1.15297638,856.33,855.08,0.86871635]
[1766209512467,1.15297638,856.34,854.99,0.86871635]
[1766209513166,1.15297638,856.34,854.83,1.16502299]
[1766209513167,1.15297638,856.3,854.94,0.86871635]
[1766209513468,1.15297638,856.26,854.88,0.86871635]
[1766209513767,1.15297638,856.26,853.65,4.07700851]
[1766209513768,1.15297638,856.19,854.95,0.20335358]
[1766209514369,1.15297638,856.21,854.95,0.20335358]
[1766209515268,1.15297638,856.22,854.95,0.20335358]
[1766209516270,1.15297638,856.24,854.95,0.20335358]
[1766209517274,1.15297638,856.25,854.95,0.20335358]
[1766209517475,1.15297638,856.26,854.95,0.20335358]
[1766209518375,1.15297638,856.27,854.95,0.20335358]
[1766209519275,1.15297638,856.28,854.95,0.20335358]
[1766209520278,1.15297638,856.29,854.95,0.20335358]
[1766209520477,1.15297638,856.28,854.95,0.20335358]
[1766209521374,1.72946457,856.44,854.95,0.20335358]
[1766209521375,1.15297638,856.29,854.95,0.20335358]
[1766209524375,1.15297638,856.3,854.95,0.20335358]
[1766209529279,1.15297638,856.31,854.95,0.20335358]
[1766209529880,1.15297638,856.28,854.95,0.20335358]
[1766209530081,1.15297638,856.28,854.58,0.86871635]
[1766209530281,1.15297638,856.17,854.53,0.86871635]
[1766209530579,1.15297638,856.18,854.74,0.20340112]
[1766209532276,1.15297638,856.13,854.74,0.20340112]
[1766209533378,1.15297638,856.08,854.74,0.20340112]
[1766209534478,1.15297638,856.09,854.74,0.20340112]
[1766209535479,1.15297638,856.1,854.74,0.20340112]
[1766209536378,1.15297638,856.11,854.74,0.20340112]
[1766209538282,1.15297638,856.12,854.74,0.20340112]
[1766209538882,1.15297638,856.13,854.74,0.20340112]
[1766209539178,1.15297638,856.15,854.74,0.20340112]
[1766209539379,1.15297638,856.2,854.74,0.20340112]
[1766209546379,1.15297638,856.19,854.74,0.20340112]
[1766209549582,1.15297638,856.18,854.74,0.20340112]
[1766209551482,1.72946457,856.33,854.74,0.20340112]
[1766209551483,1.15297638,856.17,854.74,0.20340112]
[1766209553380,1.15297638,856.16,854.74,0.20340112]
[1766209554386,1.15297638,856.15,854.74,0.20340112]
[1766209555386,1.15297638,856.14,854.74,0.20340112]
[1766209556486,1.15297638,856.13,854.74,0.20340112]
[1766209557484,1.15297638,856.12,854.74,0.20340112]
[1766209558388,1.15297638,856.1,854.74,0.20340112]
[1766209559384,1.15297638,856.09,854.74,0.20340112]
[1766209560489,1.15297638,856.08,854.74,0.20340112]
[1766209560889,1.15297638,856.09,854.74,0.20340112]
[1766209561089,1.15297638,856.08,854.74,0.20340112]
[1766209561289,1.15297638,856.07,854.74,0.20340112]
[1766209562288,1.15297638,856.04,854.74,0.20340112]
[1766209563384,1.15297638,856.01,854.74,0.20340112]
[1766209563989,1.15297638,856.02,854.74,0.20340112]
[1766209564186,1.15297638,856.01,854.74,0.20340112]
[1766209564387,1.15297638,855.99,854.74,0.20340112]
[1766209565390,1.15297638,855.97,854.74,0.20340112]
[1766209565890,1.15297638,855.96,854.74,0.20340112]
[1766209566292,1.15297638,855.95,854.74,0.20340112]
[1766209567488,1.15297638,855.94,854.74,0.20340112]
[1766209568390,1.15297638,855.93,854.74,0.20340112]
[1766209569294,1.15297638,855.92,854.74,0.20340112]
[1766209570290,1.15297638,855.9,854.74,0.20340112]
[1766209571290,1.15297638,855.88,854.74,0.20340112]
[1766209572293,1.15297638,855.87,854.74,0.20340112]
[1766209573495,1.15297638,855.86,854.74,0.20340112]
[1766209576299,1.15297638,855.85,854.74,0.20340112]
[1766209579304,1.15297638,855.84,854.74,0.20340112]
[1766209581405,1.15297638,855.83,854.74,0.20340112]
[1766209583405,1.15297638,855.82,854.74,0.20340112]
[1766209584305,1.15297638,855.81,854.74,0.20340112]
[1766209585307,1.15297638,855.8,854.74,0.20340112]
[1766209585508,1.15297638,855.74,854.74,0.20340112]
[1766209585910,1.15297638,855.69,854.52,1.16502299]
[1766209586107,1.15297638,855.69,854.66,0.20344334]
[1766209586405,1.15297638,855.68,854.66,0.20344334]
[1766209587208,1.15297638,855.69,854.66,0.20344334]
[1766209587402,1.15297638,855.68,854.66,0.20344334]
[1766209588408,1.15297638,855.67,854.66,0.20344334]
[1766209589413,1.15297638,855.66,854.66,0.20344334]
[1766209590316,1.15297638,855.67,854.66,0.20344334]
[1766209594225,1.15297638,855.68,854.66,0.20344334]
[1766209595926,1.15297638,855.67,854.66,0.20344334]
[1766209599729,1.15297638,855.68,854.66,0.20344334]
[1766209599929,1.15297638,855.77,854.66,0.20344334]
[1766209609030,1.15297638,855.7,854.66,0.20344334]
[1766209610332,6.16905693,855.7,854.66,0.20344334]
[1766209612739,1.15297638,855.68,854.66,0.20344334]
[1766209613739,1.15297638,855.65,854.66,0.20344334]
[1766209614139,1.15297638,855.66,854.66,0.20344334]
[1766209621145,5.01608055,855.7,854.66,0.20344334]
[1766209638351,5.01608055,855.7,854.66,1.36846633]
[1766209639450,5.01608055,855.7,854.68,1.16502299]
[1766209639655,5.01608055,855.7,854.7,1.16502299]
[1766209639853,5.01608055,855.7,854.71,1.16502299]
[1766209640054,5.01608055,855.7,854.73,1.16502299]
[1766209641252,5.01608055,855.7,854.72,1.16502299]
[1766209641854,5.01608055,855.7,854.73,1.16502299]
[1766209642359,5.01608055,855.7,854.72,1.16502299]
[1766209644162,5.01608055,855.7,854.71,1.16502299]
[1766209647162,5.01608055,855.7,854.7,1.16502299]
[1766209652166,5.01608055,855.7,854.69,1.16502299]
[1766209652370,5.01608055,855.7,854.66,0.20344334]
[1766209712214,1.15297638,855.69,854.66,0.20344334]
[1766209713213,1.15297638,855.68,854.66,0.20344334]
[1766209714212,1.15297638,855.67,854.66,0.20344334]
[1766209717215,1.15297638,855.68,854.66,0.20344334]
[1766209719720,6.16905693,855.7,854.67,1.16502299]
[1766209732434,1.15297638,855.7,854.67,1.16502299]
[1766209736237,1.15297638,855.86,854.83,1.16502299]
[1766209737241,1.15297638,855.89,854.81,1.16502299]
[1766209738143,1.15297638,855.89,854.66,0.20344334]
[1766209738144,1.15297638,855.9,854.79,1.16502299]
[1766209739241,1.15297638,855.91,854.78,1.16502299]
[1766209741238,1.15297638,855.92,854.77,1.16502299]
[1766209742339,1.15297638,855.92,854.76,1.16502299]
[1766209743241,1.15297638,855.93,854.76,1.16502299]
[1766209744244,1.15297638,855.93,854.75,1.16502299]
[1766209745241,1.15297638,855.94,854.75,1.16502299]
[1766209745845,1.15297638,855.87,854.68,1.16502299]
[1766209746143,6.26354702,855.87,854.68,1.16502299]
[1766209747645,1.15297638,855.85,854.66,1.36846633]
[1766209748246,1.15297638,855.79,854.66,0.20344334]
[1766209757248,1.15297638,855.8,854.66,0.20344334]
[1766209757447,5.11057064,855.87,854.72,1.16502299]
[1766209759154,5.11057064,855.87,854.71,1.16502299]
[1766209759756,5.11057064,855.87,854.72,1.16502299]
[1766209760351,5.11057064,855.87,854.71,1.16502299]
[1766209768159,5.11057064,855.87,854.7,1.16502299]
[1766209768359,5.11057064,855.87,854.69,1.16502299]
[1766209770861,5.11057064,855.87,854.68,1.16502299]
[1766209771061,6.26354702,855.87,854.66,0.20344334]
[1766209773361,1.15297638,855.86,854.66,0.20344334]
[1766209773663,6.26354702,855.87,854.66,0.20344334]
[1766209774162,1.15297638,855.86,854.66,0.20344334]
[1766209776267,6.26354702,855.87,854.66,0.20344334]
[1766209777267,1.15297638,855.86,854.66,0.20344334]
[1766209778164,1.15297638,855.86,854.66,1.36846633]
[1766209786078,1.15297638,855.86,854.66,1.16502299]
[1766209786276,1.15297638,855.85,854.71,0.2034142]
[1766209787678,1.15297638,855.85,854.71,7.67301496]
[1766209789279,5.11057064,855.87,854.73,1.16502299]
[1766209795283,5.11057064,855.87,854.74,1.16502299]
[1766209804091,5.11057064,855.87,854.75,1.16502299]
[1766209804386,5.11057064,855.87,854.71,7.67301496]
[1766209804387,5.11057064,855.87,854.77,1.16502299]
[1766209804690,5.11057064,855.87,854.87,1.16502299]
[1766209806193,5.11057064,855.87,854.86,1.16502299]
[1766209807591,5.11057064,855.87,854.85,1.16502299]
[1766209810195,5.11057064,855.87,854.92,1.16502299]
[1766209810394,5.11057064,855.87,854.91,1.16502299]
[1766209811395,5.11057064,855.87,854.9,1.16502299]
[1766209811795,5.11057064,855.87,854.93,1.16502299]
[1766209812291,5.11057064,855.87,854.92,1.16502299]
[1766209814299,5.11057064,855.87,854.91,1.16502299]
[1766209815399,5.11057064,855.87,854.9,1.16502299]
[1766209815699,5.11057064,855.87,854.91,1.16502299]
[1766209815897,5.11057064,855.87,854.98,1.16502299]
[1766209816300,5.11057064,855.87,854.97,1.16502299]
[1766209817304,5.11057064,855.87,854.96,1.16502299]
[1766209817903,5.11057064,855.87,854.98,1.16502299]
[1766209818299,5.11057064,855.87,854.97,1.16502299]
[1766209819306,5.11057064,855.87,854.82,1.74728936]
[1766209819307,5.11057064,855.87,854.96,1.16502299]
[1766209820306,5.11057064,855.87,854.95,1.16502299]
[1766209822208,5.11057064,855.87,854.94,1.16502299]
[1766209823411,5.11057064,855.87,854.93,1.16502299]
[1766209824310,5.11057064,855.87,854.92,1.16502299]
[1766209826313,5.11057064,855.87,854.91,1.16502299]
[1766209831313,5.11057064,855.87,854.9,1.16502299]
[1766209843224,5.11057064,855.87,854.91,1.16502299]
[1766209846229,5.11057064,855.87,854.92,1.16502299]
[1766209848231,5.11057064,855.87,854.93,1.16502299]
[1766209851238,5.11057064,855.87,854.94,1.16502299]
[1766209853239,5.11057064,855.87,854.95,1.16502299]
[1766209854437,5.11057064,855.87,854.96,1.16502299]
[1766209856237,5.11057064,855.87,854.97,1.16502299]
[1766209856941,5.11057064,855.87,854.96,1.16502299]
[1766209857141,5.11057064,855.87,854.97,1.16502299]
[1766209858341,5.11057064,855.87,854.98,1.16502299]
[1766209859041,5.11057064,855.87,854.97,1.16502299]
[1766209859341,5.11057064,855.87,854.98,1.16502299]
[1766209861342,5.11057064,855.87,854.99,1.16502299]
[1766209862240,5.11057064,855.87,854.83,1.74728936]
[1766209862241,5.11057064,855.87,855.0,1.16502299]
[1766209863339,5.11057064,855.87,855.02,1.16502299]
[1766209864541,5.11057064,855.87,855.03,1.16502299]
[1766209865242,5.11057064,855.87,855.04,1.16502299]
[1766209867345,5.11057064,855.87,855.05,1.16502299]
[1766209867540,53.00770882,855.97,855.05,1.16502299]
[1766209868444,53.00770882,855.97,854.98,1.16502299]
[1766209869347,53.00770882,855.97,854.93,1.16502299]
[1766209870243,53.00770882,855.97,854.92,1.16502299]
[1766209873150,53.00770882,855.97,854.89,1.16502299]
[1766209873445,53.00770882,855.97,854.88,1.16502299]
[1766209875449,53.00770882,855.97,854.87,1.16502299]
[1766209877251,53.00770882,855.97,854.86,1.16502299]
[1766209879351,53.00770882,855.97,854.85,1.16502299]
[1766209879852,53.00770882,855.97,854.84,1.16502299]
[1766209881355,53.00770882,855.97,854.83,1.16502299]
[1766209882658,0.20338329,855.95,854.83,1.16502299]
[1766209884255,0.20338329,855.95,854.82,1.16502299]
[1766209888257,0.20338329,855.95,854.81,1.16502299]
[1766209896366,0.20338329,855.95,854.8,1.16502299]
[1766209899172,0.20338329,855.95,854.74,53.93857062]
[1766209902468,53.05945418,855.93,854.74,53.93857062]
[1766209928188,54.21243056,855.93,854.74,53.93857062]
[1766209933190,1.15297638,855.92,854.74,53.93857062]
[1766209941304,1.15297638,855.91,854.74,53.93857062]